fUSD/lending_fUSD_20240125
["ID","MTS","AMOUNT","RATE_DAILY","PERIOD"]
[312687121,1706145131539,-510.96,0.00052328,31]
[312687122,1706145131553,-500.0,0.00052328,31]
[312687123,1706145131562,-305.56060898,0.00052328,31]
[312687124,1706145131571,-545.8,0.00052328,31]
[312687125,1706145131581,-500.0,0.00052328,31]
[312687126,1706145131590,-547.01,0.00052328,31]
[312687127,1706145131599,-500.0,0.00052328,31]
[312687128,1706145131608,-500.0,0.00052328,31]
[312687129,1706145131617,-500.0,0.00052328,31]
[312687130,1706145131627,-500.0,0.00052328,31]
[312687131,1706145131637,-500.0,0.00052328,31]
[312687132,1706145131645,-500.0,0.00052328,31]
[312687133,1706145131654,-665.93,0.00052328,31]
[312687134,1706145131663,-500.0,0.00052328,31]
[312687135,1706145131672,-500.0,0.00052328,31]
[312687136,1706145131682,-500.0,0.00052328,31]
[312687137,1706145131691,-1000.0,0.00052328,7]
[312687138,1706145131699,-500.0,0.00052328,31]
[312687139,1706145131708,-500.0,0.00052328,31]
[312687140,1706145131717,-500.0,0.00052328,31]
[312687141,1706145131726,-500.0,0.00052328,31]
[312687142,1706145131735,-500.0,0.00052328,31]
[312687143,1706145131744,-4118.15,0.00052328,15]
[312687144,1706145131754,-500.0,0.00052328,31]
[312687145,1706145131764,-523.13,0.00052328,31]
[312687146,1706145131773,-937.73,0.00052328,2]
[312687147,1706145131782,-1968.51,0.00052328,31]
[312687148,1706145131791,-500.0,0.00052328,31]
[312687149,1706145131800,-539.3,0.00052328,31]
[312687150,1706145131809,-564.04917046,0.00052328,31]
[312687151,1706145131818,-500.0,0.00052328,31]
[312687152,1706145131827,-500.0,0.00052328,31]
[312687153,1706145131836,-500.0,0.00052328,31]
[312687154,1706145131845,-4141.1,0.00052328,31]
[312687155,1706145131854,-500.0,0.00052328,31]
[312687156,1706145131863,-500.0,0.00052328,31]
[312687157,1706145131872,-500.0,0.00052328,31]
[312687158,1706145131881,-500.0,0.00052328,31]
[312687159,1706145131890,-500.0,0.00052328,31]
[312687160,1706145131899,-500.0,0.00052328,31]
[312687161,1706145131908,-500.0,0.00052328,31]
[312687162,1706145131917,-500.0,0.00052328,31]
[312687163,1706145131927,-623.31161824,0.00052328,31]
[312687164,1706145131936,-500.0,0.00052328,2]
[312687165,1706145131946,-792.61,0.00052328,31]
[312687166,1706145131954,-500.0,0.00052328,31]
[312687167,1706145131963,-500.0,0.00052328,31]
[312687168,1706145131972,-500.0,0.00052328,31]
[312687169,1706145131981,-500.0,0.00052328,31]
[312687170,1706145131990,-500.82747676,0.00052328,2]
[312687171,1706145131999,-500.0,0.00052328,31]
[312687172,1706145132009,-500.0,0.00052328,31]
[312687173,1706145132018,-702.69,0.00052328,31]
[312687174,1706145132027,-608.95135745,0.00052328,31]
[312687175,1706145132036,-500.0,0.00052328,31]
[312687176,1706145132045,-500.0,0.00052328,31]
[312687177,1706145132054,-500.0,0.00052328,31]
[312687178,1706145132063,-668.66,0.00052328,31]
[312687179,1706145132072,-500.0,0.00052328,31]
[312687180,1706145132082,-619.19,0.00052328,31]
[312687181,1706145132090,-500.0,0.00052328,31]
[312687182,1706145132099,-953.39,0.00052328,31]
[312687183,1706145132109,-500.0,0.00052328,31]
[312687184,1706145132118,-416.47626112,0.00052328,31]
[312687185,1706145132128,-500.0,0.00052328,31]
[312687186,1706145132138,-500.0,0.00052328,31]
[312687187,1706145132146,-500.0,0.00052328,31]
[312687188,1706145132156,-500.0,0.00052328,31]
[312687189,1706145132166,-500.0,0.00052328,31]
[312687190,1706145132175,-153.69048133,0.00052328,31]
[312687191,1706145132184,-500.0,0.00052328,31]
[312687192,1706145132193,-524.2,0.00052328,31]
[312687193,1706145132202,-500.0,0.00052328,31]
[312687194,1706145132211,-500.0,0.00052328,31]
[312687195,1706145132220,-540.72159271,0.00052328,31]
[312687196,1706145132229,-781.79,0.00052328,31]
[312687197,1706145132239,-500.0,0.00052328,31]
[312687198,1706145132248,-500.0,0.00052328,31]
[312687199,1706145132257,-718.1,0.00052328,31]
[312687200,1706145132266,-500.0,0.00052328,31]
[312687201,1706145132276,-558.82,0.00052328,31]
[312687202,1706145132285,-500.0,0.00052328,31]
[312687203,1706145132294,-500.0,0.00052328,31]
[312687204,1706145132303,-500.0,0.00052328,31]
[312687205,1706145132312,-500.0,0.00052328,31]
[312687206,1706145132323,-390.99805914,0.00052328,31]
[312687207,1706145132333,-500.0,0.00052328,31]
[312687208,1706145132341,-500.0,0.00052328,31]
[312687209,1706145132350,-500.0,0.00052328,31]
[312687210,1706145132360,-719.02,0.00052328,31]
[312687211,1706145132369,-417.18325998,0.00052328,31]
[312687212,1706145132378,-500.0,0.00052328,31]
[312687213,1706145132388,-530.57,0.00052328,31]
[312687214,1706145132397,-590.77,0.00052328,31]
[312687215,1706145132407,-500.0,0.00052328,31]
[312687216,1706145132418,-500.0,0.00052328,31]
[312687217,1706145132428,-323.95710584,0.00052328,31]
[312687218,1706145132438,-500.0,0.00052328,31]
[312687219,1706145132447,-1141.79,0.00052328,31]
[312687220,1706145132456,-500.0,0.00052328,31]
[312687221,1706145132465,-626.76,0.00052328,31]
[312687222,1706145132474,-500.0,0.00052328,31]
[312687223,1706145132484,-500.0,0.00052328,31]
[312687224,1706145132501,-500.0,0.00052328,31]
[312687225,1706145132513,-500.0,0.00052328,31]
[312687226,1706145132522,-500.0,0.00052328,31]
[312687227,1706145132531,-500.0,0.00052328,31]
[312687228,1706145132541,-500.0,0.00052328,31]
[312687229,1706145132554,-500.0,0.00052328,31]
[312687230,1706145132563,-529.72,0.00052328,31]
[312687231,1706145132573,-500.0,0.00052328,31]
[312687232,1706145132583,-502.97,0.00052328,31]
[312687233,1706145132591,-500.0,0.00052328,31]
[312687234,1706145132600,-992.14,0.00052328,120]
[312687235,1706145132610,-500.0,0.00052328,31]
[312687236,1706145132619,-500.0,0.00052328,31]
[312687237,1706145132630,-500.0,0.00052328,31]
[312687238,1706145132641,-559.78469901,0.00052328,31]
[312687239,1706145132651,-500.0,0.00052328,31]
[312687240,1706145132659,-308.41779434,0.00052328,31]
[312687241,1706145132669,-500.0,0.00052328,31]
[312687242,1706145132678,-500.0,0.00052328,31]
[312687243,1706145132688,-500.0,0.00052328,31]
[312687244,1706145132697,-500.0,0.00052328,31]
[312687245,1706145132708,-697.72,0.00052328,2]
[312687246,1706145132718,-500.0,0.00052328,31]
[312687247,1706145132727,-796.46,0.00052328,31]
[312687248,1706145132737,-500.0,0.00052328,31]
[312687249,1706145132746,-319.3155422,0.00052328,31]
[312687250,1706145132755,-500.0,0.00052328,31]
[312687251,1706145132764,-500.0,0.00052328,31]
[312687252,1706145132773,-502.99,0.00052328,31]
[312687253,1706145132782,-500.0,0.00052328,31]
[312687254,1706145132791,-521.2883726,0.00052328,31]
[312687255,1706145132800,-1084.63,0.00052328,31]
[312687256,1706145132809,-179.230615,0.00052328,31]
[312687257,1706145132818,-500.0,0.00052328,31]
[312687258,1706145132827,-500.0,0.00052328,31]
[312687259,1706145132837,-500.0,0.00052328,31]
[312687260,1706145132845,-1233.91,0.00052328,7]
[312687261,1706145132854,-500.0,0.00052328,31]
[312687262,1706145132864,-500.0,0.00052328,31]
[312687263,1706145132873,-500.0,0.00052328,31]
[312687264,1706145132882,-500.0,0.00052328,31]
[312687265,1706145132891,-500.0,0.00052328,31]
[312687266,1706145132900,-500.0,0.00052328,14]
[312687267,1706145132909,-500.0,0.00052328,31]
[312687268,1706145132918,-500.0,0.00052328,31]
[312687269,1706145132927,-500.0,0.00052328,31]
[312687270,1706145132936,-500.0,0.00052328,31]
[312687271,1706145132945,-500.0,0.00052328,31]
[312687272,1706145132954,-500.0,0.00052328,31]
[312687273,1706145132963,-500.0,0.00052328,31]
[312687274,1706145132971,-500.0,0.00052328,31]
[312687275,1706145132981,-500.0,0.00052328,31]
[312687276,1706145132991,-669.25,0.00052328,20]
[312687277,1706145133000,-500.0,0.00052328,31]
[312687278,1706145133010,-500.0,0.00052328,31]
[312687279,1706145133019,-500.0,0.00052328,31]
[312687280,1706145133028,-500.0,0.00052328,31]
[312687281,1706145133037,-1309.13,0.00052328,7]
[312687282,1706145133046,-500.0,0.00052328,31]
[312687283,1706145133056,-500.0,0.00052328,31]
[312687284,1706145133064,-520.3,0.00052328,31]
[312687285,1706145133074,-500.0,0.00052328,31]
[312687286,1706145133083,-500.0,0.00052328,31]
[312687287,1706145133092,-500.0,0.00052328,31]
[312687288,1706145133101,-983.18,0.00052328,31]
[312687289,1706145133112,-500.0,0.00052328,31]
[312687290,1706145133121,-500.0,0.00052328,31]
[312687291,1706145133131,-500.0,0.00052328,31]
[312687292,1706145133141,-523.88,0.00052328,31]
[312687293,1706145133150,-500.0,0.00052328,31]
[312687294,1706145133159,-500.0,0.00052328,31]
[312687295,1706145133168,-1157.14,0.00052328,31]
[312687296,1706145133177,-500.0,0.00052328,31]
[312687297,1706145133186,-500.0,0.00052328,31]
[312687298,1706145133195,-500.0,0.00052328,31]
[312687299,1706145133204,-500.0,0.00052328,31]
[312687300,1706145133213,-500.0,0.00052328,31]
[312687301,1706145133223,-594.98,0.00052328,31]
[312687302,1706145133232,-500.0,0.00052328,31]
[312687303,1706145133241,-500.0,0.00052328,31]
[312687304,1706145133250,-500.0,0.00052328,31]
[312687305,1706145133259,-500.0,0.00052328,31]
[312687306,1706145133269,-500.0,0.00052328,31]
[312687307,1706145133278,-621.48,0.00052328,31]
[312687308,1706145133287,-659.17,0.00052328,31]
[312687309,1706145133297,-701.09,0.00052328,31]
[312687310,1706145133306,-500.0,0.00052328,31]
[312687311,1706145133315,-1697.01,0.00052328,31]
[312687312,1706145133324,-500.0,0.00052328,31]
[312687313,1706145133333,-500.0,0.00052328,31]
[312687314,1706145133342,-500.0,0.00052328,31]
[312687315,1706145133351,-500.0,0.00052328,31]
[312687316,1706145133362,-500.0,0.00052328,31]
[312687317,1706145133370,-296.97231463,0.00052328,31]
[312687318,1706145133379,-426.13605347,0.00052328,31]
[312687319,1706145133388,-523.57,0.00052328,31]
[312687320,1706145133398,-500.0,0.00052328,31]
[312687321,1706145133407,-728.06,0.00052328,31]
[312687322,1706145133416,-500.0,0.00052328,31]
[312687323,1706145133425,-511.53,0.00052328,31]
[312687324,1706145133434,-500.0,0.00052328,31]
[312687325,1706145133443,-500.0,0.00052328,31]
[312687326,1706145133452,-500.0,0.00052328,31]
[312687327,1706145133461,-665.87,0.00052328,31]
[312687328,1706145133470,-698.55,0.00052328,31]
[312687329,1706145133479,-360.85394469,0.00052328,31]
[312687330,1706145133488,-535.75,0.00052328,31]
[312687331,1706145133497,-386.64966869,0.00052328,31]
[312687332,1706145133507,-500.0,0.00052328,31]
[312687333,1706145133516,-973.03,0.00052328,2]
[312687334,1706145133525,-500.0,0.00052328,31]
[312687335,1706145133536,-3653.94,0.00052328,31]
[312687336,1706145133547,-944.79,0.00052328,31]
[312687337,1706145133556,-500.0,0.00052328,31]
[312687338,1706145133566,-500.0,0.00052328,31]
[312687339,1706145133575,-500.0,0.00052328,31]
[312687340,1706145133584,-517.29,0.00052328,31]
[312687341,1706145133593,-766.32,0.00052328,31]
[312687342,1706145133602,-578.45,0.00052328,31]
[312687343,1706145133612,-500.0,0.00052328,31]
[312687344,1706145133621,-500.01662218,0.00052328,31]
[312687345,1706145133631,-521.91604347,0.00052328,31]
[312687346,1706145133640,-500.0,0.00052328,31]
[312687347,1706145133649,-571.27,0.00052328,31]
[312687348,1706145133659,-500.0,0.00052328,31]
[312687349,1706145133669,-8715.7,0.00052328,31]
[312687350,1706145133678,-500.0,0.00052328,31]
[312687351,1706145133688,-1119.03,0.00052328,2]
[312687352,1706145133697,-203.82,0.00052328,31]
[312687353,1706145133706,-500.0,0.00052328,31]
[312687354,1706145133715,-563.62,0.00052328,31]
[312687355,1706145133724,-551.67,0.00052328,31]
[312687356,1706145133734,-1258.54,0.00052328,31]
[312687357,1706145133742,-797.85,0.00052328,31]
[312687358,1706145133752,-500.0,0.00052328,31]
[312687359,1706145133761,-500.0,0.00052328,31]
[312687360,1706145133770,-500.0,0.00052328,31]
[312687361,1706145133779,-500.0,0.00052328,31]
[312687362,1706145133788,-500.0,0.00052328,31]
[312687363,1706145133798,-524.49,0.00052328,31]
[312687364,1706145133807,-1041.4,0.00052328,31]
[312687365,1706145133816,-500.0,0.00052328,31]
[312687366,1706145133825,-500.0,0.00052328,31]
[312687367,1706145133835,-209.06045101,0.00052328,31]
[312687368,1706145133844,-572.67,0.00052328,31]
[312687369,1706145133854,-539.39469762,0.00052328,31]
[312687370,1706145133865,-1295.76,0.00052328,31]
[312687371,1706145133875,-531.79,0.00052328,31]
[312687372,1706145133885,-717.84,0.00052328,31]
[312687373,1706145133895,-866.53,0.00052328,31]
[312687374,1706145133907,-233.01207387,0.00052328,31]
[312687375,1706145133916,-500.0,0.00052328,31]
[312687376,1706145133926,-500.0,0.00052328,31]
[312687377,1706145133935,-543.89,0.00052328,31]
[312687378,1706145133946,-1360.18,0.00052328,31]
[312687379,1706145133956,-1845.53,0.00052328,31]
[312687380,1706145133967,-738.6,0.00052328,31]
[312687381,1706145133976,-500.0,0.00052328,31]
[312687382,1706145133985,-645.65,0.00052328,31]
[312687383,1706145133994,-541.32,0.00052328,31]
[312687384,1706145134005,-500.0,0.00052328,31]
[312687385,1706145134015,-500.0,0.00052328,31]
[312687386,1706145134024,-500.0,0.00052328,31]
[312687387,1706145134035,-569.14,0.00052328,31]
[312687388,1706145134045,-500.0,0.00052328,31]
[312687389,1706145134055,-500.0,0.00052328,31]
[312687390,1706145134065,-500.0,0.00052328,31]
[312687391,1706145134074,-567.82,0.00052328,31]
[312687392,1706145134084,-959.04,0.00052328,31]
[312687393,1706145134094,-672.35,0.00052328,31]
[312687394,1706145134104,-500.0,0.00052328,31]
[312687395,1706145134114,-500.0,0.00052328,31]
[312687396,1706145134123,-3857.57,0.00052328,5]
[312687397,1706145134133,-500.0,0.00052328,31]
[312687398,1706145134143,-1206.46,0.00052328,31]
[312687399,1706145134152,-608.48,0.00052328,31]
[312687400,1706145134162,-500.0,0.00052328,31]
[312687401,1706145134171,-1000.0,0.00052328,2]
[312687402,1706145134181,-500.0,0.00052328,31]
[312687403,1706145134191,-2393.75,0.00052328,31]
[312687404,1706145134200,-681.13,0.00052328,31]
[312687405,1706145134210,-683.16,0.00052328,31]
[312687406,1706145134220,-714.81,0.00052328,31]
[312687407,1706145134230,-500.0,0.00052328,31]
[312687408,1706145134239,-500.0,0.00052328,31]
[312687409,1706145134248,-5066.61,0.00052328,31]
[312687410,1706145134259,-585.71,0.00052328,31]
[312687411,1706145134269,-500.0,0.00052328,31]
[312687412,1706145134278,-966.39,0.00052328,31]
[312687413,1706145134288,-2701.77,0.00052328,31]
[312687414,1706145134298,-535.75,0.00052328,31]
[312687415,1706145134307,-500.0,0.00052328,31]
[312687416,1706145134318,-2453.54,0.00052328,31]
[312687417,1706145134327,-2066.55,0.00052328,31]
[312687418,1706145134337,-687.75,0.00052328,31]
[312687419,1706145134347,-580.27,0.00052328,31]
[312687420,1706145134357,-532.81,0.00052328,31]
[312687421,1706145134367,-5784.02,0.00052328,31]
[312687422,1706145134377,-1006.46,0.00052328,31]
[312687423,1706145134386,-500.0,0.00052328,31]
[312687424,1706145134396,-500.0,0.00052328,31]
[312687425,1706145134406,-500.0,0.00052328,31]
[312687426,1706145134415,-608.39727698,0.00052328,31]
[312687427,1706145134425,-537.04,0.00052328,31]
[312687428,1706145134434,-835.92,0.00052328,31]
[312687429,1706145134445,-584.5,0.00052328,31]
[312687430,1706145134455,-742.38,0.00052328,31]
[312687431,1706145134464,-375.76,0.00052328,31]
[312687432,1706145134475,-660.52,0.00052328,31]
[312687433,1706145134486,-540.87,0.00052328,31]
[312687434,1706145134496,-500.0,0.00052328,31]
[312687435,1706145134506,-1086.36,0.00052328,31]
[312687436,1706145134517,-650.74,0.00052328,31]
[312687437,1706145134527,-500.0,0.00052328,31]
[312687438,1706145134538,-1735.79,0.00052328,31]
[312687439,1706145134550,-500.0,0.00052328,31]
[312687440,1706145134561,-677.43,0.00052328,31]
[312687441,1706145134571,-700.44,0.00052328,31]
[312687442,1706145134581,-1060.9,0.00052328,31]
[312687443,1706145134591,-500.0,0.00052328,31]
[312687444,1706145134600,-500.0,0.00052328,31]
[312687445,1706145134611,-500.55,0.00052328,31]
[312687446,1706145134620,-500.0,0.00052328,31]
[312687447,1706145134631,-547.24,0.00052328,31]
[312687448,1706145134641,-2280.94,0.00052328,31]
[312687449,1706145134651,-552.79,0.00052328,31]
[312687450,1706145134660,-1320.68,0.00052328,31]
[312687451,1706145134670,-500.0,0.00052328,31]
[312687452,1706145134681,-500.0,0.00052328,31]
[312687453,1706145134691,-581.01,0.00052328,31]
[312687454,1706145134701,-712.54,0.00052328,31]
[312687455,1706145134710,-594.4780359,0.00052328,31]
[312687456,1706145134722,-500.0,0.00052328,31]
[312687457,1706145134733,-1247.14,0.00052328,31]
[312687458,1706145134745,-500.0,0.00052328,31]
[312687459,1706145134755,-500.0,0.00052328,31]
[312687460,1706145134765,-608.94,0.00052328,31]
[312687461,1706145134775,-693.55,0.00052328,31]
[312687462,1706145134785,-500.0,0.00052328,31]
[312687463,1706145134796,-887.42,0.00052328,31]
[312687464,1706145134809,-500.0,0.00052328,31]
[312687465,1706145134819,-500.0,0.00052328,31]
[312687466,1706145134829,-633.04,0.00052328,31]
[312687467,1706145134839,-500.0,0.00052328,31]
[312687468,1706145134848,-706.67,0.00052328,31]
[312687469,1706145134858,-778.86,0.00052328,31]
[312687470,1706145134868,-4966.08,0.00052328,31]
[312687471,1706145134879,-639.06,0.00052328,31]
[312687472,1706145134888,-712.26,0.00052328,31]
[312687473,1706145134899,-1315.35,0.00052328,31]
[312687474,1706145134908,-740.74,0.00052328,31]
[312687475,1706145134918,-564.19,0.00052328,31]
[312687476,1706145134928,-500.0,0.00052328,31]
[312687477,1706145134938,-1073.61,0.00052328,31]
[312687478,1706145134948,-765.5,0.00052328,31]
[312687479,1706145134958,-645.15,0.00052328,31]
[312687480,1706145134968,-500.0,0.00052328,31]
[312687481,1706145134978,-539.53,0.00052328,31]
[312687482,1706145134988,-751.1,0.00052328,31]
[312687483,1706145134999,-500.0,0.00052328,31]
[312687484,1706145135009,-553.53,0.00052328,31]
[312687485,1706145135019,-500.0,0.00052328,31]
[312687486,1706145135029,-608.69,0.00052328,31]
[312687487,1706145135039,-537.1,0.00052328,31]
[312687488,1706145135049,-649.59,0.00052328,31]
[312687489,1706145135059,-3061.04,0.00052328,31]
[312687490,1706145135069,-875.62,0.00052328,31]
[312687491,1706145135080,-769.1,0.00052328,31]
[312687492,1706145135091,-1451.54,0.00052328,31]
[312687493,1706145135100,-500.0,0.00052328,31]
[312687494,1706145135110,-860.59,0.00052328,31]
[312687495,1706145135121,-500.0,0.00052328,31]
[312687496,1706145135131,-703.22,0.00052328,31]
[312687497,1706145135141,-992.0,0.00052328,31]
[312687498,1706145135151,-737.72,0.00052328,31]
[312687499,1706145135162,-658.3,0.00052328,31]
[312687500,1706145135172,-500.0,0.00052328,31]
[312687501,1706145135183,-500.0,0.00052328,31]
[312687502,1706145135193,-500.0,0.00052328,31]
[312687503,1706145135202,-500.0,0.00052328,31]
[312687504,1706145135213,-500.0,0.00052328,31]
[312687505,1706145135223,-500.0,0.00052328,31]
[312687506,1706145135233,-655.7,0.00052328,31]
[312687507,1706145135243,-599.29,0.00052328,31]
[312687508,1706145135254,-764.66,0.00052328,31]
[312687509,1706145135264,-548.31,0.00052328,31]
[312687510,1706145135274,-3144.18,0.00052328,31]
[312687511,1706145135284,-500.0,0.00052328,31]
[312687512,1706145135294,-673.27,0.00052328,31]
[312687513,1706145135304,-765.11,0.00052328,31]
[312687514,1706145135314,-730.54,0.00052328,31]
[312687515,1706145135325,-515.5,0.00052328,31]
[312687516,1706145135336,-500.0,0.00052328,31]
[312687517,1706145135346,-618.61,0.00052328,31]
[312687518,1706145135356,-1295.4,0.00052328,31]
[312687519,1706145135367,-500.0,0.00052328,31]
[312687520,1706145135377,-792.67,0.00052328,31]
[312687521,1706145135387,-1247.69,0.00052328,31]
[312687522,1706145135397,-600.26,0.00052328,31]
[312687523,1706145135407,-501.79,0.00052328,31]
[312687524,1706145135417,-500.0,0.00052328,31]
[312687525,1706145135428,-678.69,0.00052328,31]
[312687526,1706145135438,-748.16,0.00052328,31]
[312687527,1706145135448,-3710.41,0.00052328,31]
[312687528,1706145135458,-689.9,0.00052328,31]
[312687529,1706145135468,-500.0,0.00052328,120]
[312687530,1706145135478,-1129.79,0.00052328,31]
[312687531,1706145135489,-500.0,0.00052328,31]
[312687532,1706145135499,-560.58,0.00052328,31]
[312687533,1706145135509,-2615.23,0.00052328,31]
[312687534,1706145135519,-1281.32,0.00052328,31]
[312687535,1706145135530,-536.66,0.00052328,31]
[312687536,1706145135541,-820.44,0.00052328,31]
[312687537,1706145135553,-500.0,0.00052328,31]
[312687538,1706145135563,-1013.31,0.00052328,31]
[312687539,1706145135574,-500.0,0.00052328,31]
[312687540,1706145135585,-571.87,0.00052328,31]
[312687541,1706145135594,-500.0,0.00052328,31]
[312687542,1706145135604,-500.0,0.00052328,31]
[312687543,1706145135616,-605.74,0.00052328,31]
[312687544,1706145135627,-500.0,0.00052328,31]
[312687545,1706145135637,-500.0,0.00052328,31]
[312687546,1706145135647,-500.0,0.00052328,31]
[312687547,1706145135657,-537.66,0.00052328,31]
[312687548,1706145135667,-756.21,0.00052328,31]
[312687549,1706145135676,-594.93,0.00052328,2]
[312687550,1706145135686,-500.0,0.00052328,31]
[312687551,1706145135698,-649.561538,0.00052328,31]
[312687552,1706145135710,-724.25,0.00052328,31]
[312687553,1706145135939,-724.18,0.00052328,31]
[312687554,1706145135949,-2993.87,0.00052328,31]
[312687555,1706145135958,-618.86,0.00052328,31]
[312687556,1706145135968,-612.72,0.00052328,31]
[312687557,1706145135978,-500.0,0.00052328,31]
[312687558,1706145135988,-500.0,0.00052328,31]
[312687559,1706145135997,-500.0,0.00052328,31]
[312687560,1706145136007,-887.79,0.00052328,31]
[312687561,1706145136017,-514.92,0.00052328,31]
[312687562,1706145136027,-500.0,0.00052328,31]
[312687563,1706145136037,-1822.59,0.00052328,2]
[312687564,1706145136046,-500.0,0.00052328,31]
[312687565,1706145136056,-1226.02,0.00052328,31]
[312687566,1706145136066,-939.98,0.00052328,31]
[312687567,1706145136075,-500.0,0.00052328,31]
[312687568,1706145136084,-500.0,0.00052328,31]
[312687569,1706145136094,-500.0,0.00052328,31]
[312687570,1706145136104,-500.0,0.00052328,31]
[312687571,1706145136114,-508.04,0.00052328,31]
[312687572,1706145136123,-500.0,0.00052328,31]
[312687573,1706145136133,-681.8,0.00052328,31]
[312687574,1706145136143,-646.07,0.00052328,31]
[312687575,1706145136152,-204.0,0.00052329,11]
[312687576,1706145136162,-255.0,0.00052329,9]
[312687577,1706145136171,-150.0,0.00052335,7]
[312687578,1706145136181,-150.0,0.00052337,7]
[312687579,1706145136190,-150.0,0.00052339,7]
[312687580,1706145136200,-150.26769463,0.0005234,60]
[312687581,1706145136210,-150.0,0.00052343,7]
[312687582,1706145136219,-150.0,0.00052348,7]
[312687583,1706145136229,-584.90819405,0.00052352,60]
[312687584,1706145136240,-1500.0,0.00052353,7]
[312687585,1706145136250,-302.0,0.00052353,4]
[312687586,1706145136259,-1500.0,0.00052358,7]
[312687587,1706145136268,-1463.20744382,0.00052362,60]
[312687588,1706145136278,-1463.20744382,0.00052363,60]
[312687589,1706145136287,-150.0,0.00052374,7]
[312687590,1706145136297,-150.0,0.00052374,7]
[312687591,1706145136307,-274.92539579,0.00052379,7]
[312687592,1706145136316,-66022.0,0.0005238,30]
[312687593,1706145136326,-1642.0,0.0005238,30]
[312687594,1706145136335,-328.0,0.0005238,30]
[312687595,1706145136345,-150.0,0.0005238,7]
[312687596,1706145136354,-1500.0,0.00052388,7]
[312687597,1706145136365,-150.0,0.00052392,7]
[312687598,1706145136374,-150.0,0.00052398,7]
[312687599,1706145136385,-150.0,0.00052398,7]
[312687600,1706145136395,-210.0,0.000524,40]
[312687601,1706145136405,-1020.0,0.000524,7]
[312687602,1706145136415,-16164.0,0.000524,120]
[312687603,1706145136424,-150.0,0.00052402,7]
[312687604,1706145136434,-150.0,0.0005241,7]
[312687605,1706145136443,-150.0,0.00052411,7]
[312687606,1706145136453,-150.0,0.00052416,7]
[312687607,1706145136463,-150.0,0.00052424,7]
[312687608,1706145136473,-584.90819405,0.00052433,60]
[312687609,1706145136482,-150.0,0.00052434,7]
[312687610,1706145136493,-150.0,0.00052435,7]
[312687611,1706145136502,-150.0,0.00052445,7]
[312687612,1706145136512,-1500.0,0.00052451,7]
[312687613,1706145136522,-432.40353136,0.00052455,60]
[312687614,1706145136532,-232.39032672,0.00052455,7]
[312687615,1706145136541,-150.0,0.00052458,7]
[312687616,1706145136553,-167.60687398,0.00052459,60]
[312687617,1706145136562,-1500.0,0.00052462,7]
[312687618,1706145136572,-150.0,0.00052463,7]
[312687619,1706145136581,-150.37716717,0.00052464,60]
[312687620,1706145136592,-432.40353136,0.00052464,60]